bitfinex-derivatives/quotes_BNBF0:USTF0_20250507
["timestamp","ask_amount","ask_price","bid_price","bid_amount"]
[1746661467904,1.00518391,602.79,601.97,0.33224247]
[1746661468702,1.00518391,602.78,601.97,0.33224247]
[1746661469003,1.00518391,602.77,601.97,0.33224247]
[1746661469503,0.28878709,603.21,601.97,0.33224247]
[1746661469697,1.27721091,603.2,601.97,0.33224247]
[1746661469997,1.27721091,603.19,601.97,0.33224247]
[1746661470202,2.28291979,603.18,601.97,0.33224247]
[1746661470400,1.27721091,603.17,601.98,0.889]
[1746661470598,1.27721091,603.16,602.0,0.33222591]
[1746661470804,1.27721091,603.15,602.0,0.33222591]
[1746661470999,1.27721091,603.14,602.01,1.006]
[1746661471197,2.28291979,603.13,602.03,0.33220935]
[1746661471501,1.27721091,603.12,602.03,0.33220935]
[1746661471701,2.28291979,603.11,602.03,0.33220935]
[1746661471902,1.27721091,603.1,602.03,0.33220935]
[1746661472098,1.27721091,603.09,602.03,0.33220935]
[1746661472302,2.28291979,603.08,602.03,0.33220935]
[1746661472502,1.27721091,603.07,602.03,0.33220935]
[1746661472701,1.27721091,603.06,602.03,0.33220935]
[1746661472900,1.27721091,603.05,602.03,0.33220935]
[1746661473101,2.28291979,603.04,602.03,0.33220935]
[1746661473304,1.2773127,603.03,602.03,0.33220935]
[1746661473599,1.2773127,603.02,602.03,0.33220935]
[1746661473800,2.28302158,603.01,602.03,0.33220935]
[1746661474000,1.2773127,603.0,602.03,0.33220935]
[1746661474205,1.27737662,602.99,602.03,0.33220935]
[1746661474407,0.28874277,603.21,602.03,0.33220935]
[1746661474408,2.2830855,602.98,602.03,0.33220935]
[1746661474607,1.27737662,602.97,602.03,0.33220935]
[1746661474806,1.00570888,602.98,602.03,0.33220935]
[1746661474807,2.2830855,602.96,602.03,0.33220935]
[1746661475007,1.27737662,602.95,602.03,0.33220935]
[1746661475204,2.2830855,602.94,602.03,0.33220935]
[1746661475409,1.27737662,602.93,602.03,0.33220935]
[1746661475610,2.2830855,602.92,602.03,0.33220935]
[1746661475805,1.27737662,602.91,602.03,0.33220935]
[1746661476103,1.27737662,602.9,602.03,0.33220935]
[1746661476307,1.27737662,602.89,602.03,0.33220935]
[1746661476506,1.27737662,602.88,602.03,0.33220935]
[1746661476707,2.2830855,602.87,602.03,0.33220935]
[1746661476909,1.27737662,602.86,602.03,0.33220935]
[1746661477109,2.2830855,602.85,602.03,0.33220935]
[1746661477309,1.27737662,602.84,602.03,0.33220935]
[1746661477510,1.27737662,602.83,602.03,0.33220935]
[1746661477717,1.27737662,602.82,602.03,0.33220935]
[1746661477910,2.28285318,602.81,602.03,0.33220935]
[1746661478105,1.00570888,602.81,602.03,0.33220935]
[1746661479411,1.00570888,602.8,602.03,0.33220935]
[1746661479914,1.00570888,602.79,602.03,0.33220935]
[1746661480207,1.00570888,602.78,602.03,0.33220935]
[1746661480811,1.00570888,602.77,602.03,0.33220935]
[1746661481310,1.00570888,602.76,602.03,0.33220935]
[1746661482414,0.2887811,603.21,602.03,0.33220935]
[1746661482613,1.27774939,603.2,602.03,0.33220935]
[1746661482816,2.28435597,603.19,602.03,0.33220935]
[1746661483110,1.27774939,603.18,602.03,0.33220935]
[1746661483312,1.27774939,603.17,602.03,0.33220935]
[1746661483511,1.27774939,603.16,602.03,0.33220935]
[1746661483715,1.27774939,603.15,602.03,0.33220935]
[1746661484011,1.27774939,603.14,602.03,0.33220935]
[1746661484212,1.00660658,603.15,602.03,0.33220935]
[1746661484414,1.00660658,603.13,602.03,0.33220935]
[1746661484612,2.28561554,603.12,602.03,0.33220935]
[1746661484918,2.28561554,603.11,602.03,0.33220935]
[1746661485114,1.27900896,603.1,602.03,0.33220935]
[1746661485415,2.28561554,603.09,602.03,0.33220935]
[1746661485615,1.27900896,603.08,602.03,0.33220935]
[1746661485812,2.28561554,603.07,602.03,0.33220935]
[1746661486010,2.28561554,603.06,602.03,0.33220935]
[1746661486310,1.27901999,603.05,602.03,0.33220935]
[1746661486511,1.27901999,603.04,602.03,0.33220935]
[1746661486711,2.28562657,603.03,602.03,0.33220935]
[1746661486912,1.27901999,603.02,602.03,0.33220935]
[1746661487118,2.28562657,603.01,602.03,0.33220935]
[1746661487418,1.27901999,603.0,602.03,0.33220935]
[1746661487616,1.27901999,602.99,602.03,0.33220935]
[1746661487816,1.27901999,602.98,602.03,0.33220935]
[1746661488017,2.28368088,602.97,602.03,0.33220935]
[1746661488213,1.2770743,602.96,602.03,0.33220935]
[1746661488517,1.2770743,602.95,602.03,0.33220935]
[1746661488717,1.2770743,602.94,602.03,0.33220935]
[1746661488918,2.28368088,602.93,602.03,0.33220935]
[1746661489218,2.28368088,602.92,602.03,0.33220935]
[1746661489521,1.00660658,602.92,602.03,0.33220935]
[1746661489819,1.00660658,602.91,602.03,0.33220935]
[1746661490018,1.00660658,602.9,602.03,0.33220935]
[1746661490318,1.00660658,602.89,602.03,1.53120935]
[1746661490819,1.00660658,602.88,602.03,1.53120935]
[1746661491218,0.28874157,603.3,602.03,1.53120935]
[1746661491418,1.27594327,603.29,602.03,1.53120935]
[1746661491713,1.27594327,603.28,602.03,1.53120935]
[1746661491918,1.27594327,603.27,602.03,1.53120935]
[1746661492118,1.27594327,603.26,602.03,1.53120935]
[1746661492418,2.281073,603.25,602.03,1.53120935]
[1746661492618,1.27594327,603.24,602.03,1.53120935]
[1746661492917,2.281073,603.23,602.03,1.53120935]
[1746661493115,2.281073,603.22,602.03,1.53120935]
[1746661493318,1.27594327,603.21,602.03,1.53120935]
[1746661493519,1.27594327,603.2,602.03,1.53120935]
[1746661493717,1.27594327,603.19,602.03,1.53120935]
[1746661493916,2.281073,603.18,602.03,1.53120935]
[1746661494115,1.27594327,603.17,602.03,1.53120935]
[1746661494415,1.27594327,603.16,602.03,1.53120935]
[1746661494714,2.281073,603.15,602.03,1.53120935]
[1746661495019,2.281073,603.14,602.03,1.53120935]
[1746661495219,1.27594327,603.13,602.03,1.53120935]
[1746661495417,1.27594327,603.12,602.03,1.53120935]
[1746661495621,1.27594327,603.11,602.03,1.53120935]
[1746661495814,1.27594327,603.1,602.03,1.53120935]
[1746661496019,2.281073,603.09,602.03,1.53120935]
[1746661496219,1.27594327,603.08,602.03,1.53120935]
[1746661496417,1.27594327,603.07,602.03,1.53120935]
[1746661496719,2.281073,603.06,602.03,1.53120935]
[1746661496921,1.27594327,603.05,602.03,1.53120935]
[1746661497218,1.27594327,603.04,602.03,1.53120935]
[1746661497422,1.27594327,603.03,602.03,1.53120935]
[1746661497622,1.27594327,603.02,602.03,1.53120935]
[1746661497918,1.27594327,603.01,602.03,1.53120935]
[1746661498119,2.28001921,603.0,602.03,1.53120935]
[1746661498317,1.27594327,602.99,602.03,1.53120935]
[1746661498519,2.27762023,602.98,602.03,1.53120935]
[1746661498721,2.27762023,602.97,602.03,1.53120935]
[1746661498920,1.27354429,602.96,602.03,1.53120935]
[1746661499119,1.27354525,602.95,602.03,2.78620935]
[1746661499420,2.27762119,602.94,602.03,2.78620935]
[1746661499624,1.00407594,602.94,602.03,2.78620935]
[1746661500022,1.00407594,602.93,602.03,2.78620935]
[1746661500224,1.00407594,602.92,602.03,2.78620935]
[1746661500625,1.00407594,602.91,602.03,2.78620935]
[1746661501422,1.00407594,602.9,602.03,2.78620935]
[1746661502330,0.28874157,603.3,602.03,2.78620935]
[1746661502530,1.27231893,603.29,602.03,2.78620935]
[1746661502725,0.28874157,603.3,602.03,2.78620935]
[1746661502726,2.27551085,603.28,602.03,2.78620935]
[1746661502929,1.27231893,603.27,602.03,2.78620935]
[1746661503126,1.27231893,603.26,602.03,2.78620935]
[1746661503330,2.27551085,603.25,602.03,2.78620935]
[1746661503532,2.27551085,603.24,602.03,2.78620935]
[1746661503830,2.27551085,603.23,602.03,3.67020935]
[1746661504027,1.27231893,603.22,602.03,3.67020935]
[1746661504328,2.27708698,603.21,602.03,3.67020935]
[1746661504530,1.27389506,603.2,602.03,3.67020935]
[1746661504730,1.27389506,603.19,602.03,3.67020935]
[1746661504931,2.27708698,603.18,602.03,3.67020935]
[1746661505131,1.27389506,603.17,602.03,3.67020935]
[1746661505331,2.27708698,603.16,602.03,3.67020935]
[1746661505529,1.27389506,603.15,602.03,3.67020935]
[1746661505730,1.27389506,603.14,602.03,3.67020935]
[1746661505926,1.27389506,603.13,602.03,3.67020935]
[1746661506131,1.27389506,603.12,602.03,3.67020935]
[1746661506327,1.27389506,603.11,602.03,3.67020935]
[1746661506631,2.27708698,603.1,602.03,3.67020935]
[1746661506831,1.27389506,603.09,602.03,3.67020935]
[1746661507029,1.27389506,603.08,602.03,3.67020935]
[1746661507226,1.27389506,603.07,602.03,3.67020935]
[1746661507427,1.27389506,603.06,602.03,3.67020935]
[1746661507628,2.27708698,603.05,602.03,3.67020935]
[1746661507933,1.27389506,603.04,602.03,3.67020935]
[1746661508129,1.27389506,603.03,602.03,3.67020935]
[1746661508330,2.27708698,603.02,602.03,3.67020935]
[1746661508635,1.27389506,603.01,602.03,3.67020935]
[1746661508933,1.27389506,603.0,602.03,3.67020935]
[1746661509129,2.27708698,602.99,602.03,3.67020935]
[1746661509330,1.27389506,602.98,602.03,3.67020935]
[1746661509528,2.27708698,602.97,602.03,3.67020935]
[1746661509833,1.27389506,602.96,602.03,3.67020935]
[1746661510033,1.00319192,602.95,602.03,3.67020935]
[1746661510334,1.00319192,602.94,602.03,3.67020935]
[1746661510835,1.00319192,602.93,602.03,3.67020935]
[1746661511737,0.28872839,603.34,602.03,3.67020935]
[1746661511936,1.27144259,603.33,602.03,3.67020935]
[1746661512135,1.27144259,603.32,602.03,3.67020935]
[1746661512337,1.27144259,603.31,602.03,3.67020935]
[1746661512637,1.27144259,603.3,602.03,3.67020935]
[1746661512839,2.27436687,603.29,602.03,3.67020935]
[1746661513136,1.27144259,603.28,602.03,3.67020935]
[1746661513340,1.27144259,603.27,602.03,3.67020935]
[1746661513532,2.27436687,603.26,602.03,3.67020935]
[1746661513731,1.27144259,603.25,602.03,3.67020935]
[1746661513940,2.27436687,603.24,602.03,3.67020935]
[1746661514139,1.27144259,603.23,602.03,3.67020935]
[1746661514335,2.27436687,603.22,602.03,3.67020935]
[1746661514538,1.27144259,603.21,602.03,3.67020935]
[1746661514737,1.00292428,603.22,602.03,3.67020935]
[1746661514738,1.27144259,603.2,602.03,3.67020935]
[1746661514940,2.27436687,603.19,602.03,3.67020935]
[1746661515139,1.27144259,603.18,602.03,3.67020935]
[1746661515336,1.27144259,603.17,602.03,3.67020935]
[1746661515635,1.27144259,603.16,602.03,3.67020935]
[1746661515836,2.27436687,603.15,602.03,3.67020935]
[1746661516041,1.27144259,603.14,602.03,3.67020935]
[1746661516240,1.27144259,603.13,602.03,3.67020935]
[1746661516439,2.27436687,603.12,602.03,3.67020935]
[1746661516641,1.27144259,603.11,602.03,3.67020935]
[1746661516936,2.27436687,603.1,602.03,3.67020935]
[1746661517142,2.27436687,603.09,602.03,3.67020935]
[1746661517343,1.27144259,603.08,602.03,3.67020935]
[1746661517642,2.27436687,603.07,602.03,3.67020935]
[1746661517843,1.27144259,603.06,602.03,3.67020935]
[1746661518139,2.27436687,603.05,602.03,3.67020935]
[1746661518340,1.27144259,603.04,602.03,3.67020935]
[1746661518639,1.27144259,603.03,602.03,3.67020935]
[1746661518940,1.00292428,603.02,602.03,3.67020935]
[1746661519145,1.26998507,603.01,602.03,3.67020935]
[1746661519442,1.27005801,603.0,602.03,3.67020935]
[1746661519738,2.27298229,602.99,602.03,3.67020935]
[1746661519944,2.27298958,602.98,602.03,3.67020935]
[1746661520143,1.00292428,602.97,602.03,3.67020935]
[1746661520344,1.00292428,602.96,602.03,3.67020935]
[1746661520945,1.00292428,602.95,602.03,3.67020935]
[1746661521245,1.00292428,602.94,602.03,3.67020935]
[1746661521640,1.00292428,602.93,602.03,3.67020935]
[1746661522241,1.00292428,602.92,602.03,3.67020935]
[1746661523045,0.28872959,603.31,602.03,3.67020935]
[1746661523347,2.27805666,603.3,602.03,3.67020935]
[1746661523546,1.27478518,603.29,602.03,3.67020935]
[1746661523747,2.27805666,603.28,602.03,3.67020935]
[1746661523942,2.27805666,603.27,602.03,3.67020935]
[1746661524145,1.27478518,603.26,602.03,3.67020935]
[1746661524440,1.27478518,603.25,602.03,3.67020935]
[1746661524645,1.27478518,603.24,602.03,3.67020935]
[1746661524844,1.27478518,603.23,602.03,3.67020935]
[1746661525046,2.27805666,603.22,602.03,3.67020935]
[1746661525241,1.27478518,603.21,602.03,3.67020935]
[1746661525440,1.27478518,603.2,602.03,3.67020935]
[1746661525642,1.27478518,603.19,602.03,3.67020935]
[1746661525944,0.28854884,603.31,602.03,3.67020935]
[1746661525945,2.27805666,603.18,602.03,3.67020935]
[1746661526146,2.27805666,603.17,602.03,3.67020935]
[1746661526346,1.27478518,603.16,602.03,3.67020935]
[1746661526545,1.27478518,603.15,602.03,3.67020935]
[1746661526845,2.27805666,603.14,602.03,3.67020935]
[1746661527046,1.27478518,603.13,602.03,3.67020935]
[1746661527342,2.27805666,603.12,602.03,3.67020935]
[1746661527546,1.27478518,603.11,602.03,3.67020935]
[1746661527746,1.27478518,603.1,602.03,3.67020935]
[1746661527945,1.27478518,603.09,602.03,3.67020935]
[1746661528145,2.27805666,603.08,602.03,3.67020935]
[1746661528345,1.27478518,603.07,602.03,3.67020935]
[1746661528546,2.27805666,603.06,602.03,3.67020935]
[1746661528745,1.27478518,603.05,602.03,3.67020935]
[1746661528947,1.27478518,603.04,602.03,3.67020935]
[1746661529143,1.27478518,603.03,602.03,3.67020935]
[1746661529342,1.27478518,603.02,602.03,3.67020935]
[1746661529546,1.27478518,603.01,602.03,3.67020935]
[1746661529747,1.27478518,603.0,602.03,3.67020935]
[1746661530048,1.27478518,602.99,602.03,3.67020935]
[1746661530341,1.27478518,602.98,602.03,3.67020935]
[1746661530542,1.27478518,602.97,602.03,3.67020935]
[1746661530741,1.00327148,602.96,602.03,3.67020935]
[1746661531342,1.00327148,602.96,602.03,4.86320935]
[1746661531548,1.00327148,602.95,602.03,4.86320935]
[1746661532449,1.00327148,602.94,602.03,4.86320935]
[1746661532747,1.00327148,602.93,602.03,4.86320935]
[1746661532948,0.28873318,603.31,602.03,4.86320935]
[1746661533148,1.27613923,603.3,602.03,4.86320935]
[1746661533447,2.2802169,603.29,602.03,4.86320935]
[1746661533651,1.27613923,603.28,602.03,4.86320935]
[1746661533849,1.27613923,603.27,602.03,4.86320935]
[1746661534146,2.2802169,603.26,602.03,4.86320935]
[1746661534451,1.27613923,603.25,602.03,4.86320935]
[1746661534645,1.27613923,603.24,602.03,4.86320935]
[1746661534844,2.2802169,603.23,602.03,4.86320935]
[1746661535049,1.27613923,603.22,602.03,4.86320935]
[1746661535246,1.27613923,603.21,602.03,4.86320935]
[1746661535444,1.26815284,604.03,602.03,4.86320935]
[1746661535445,2.2802169,603.2,602.03,4.86320935]
[1746661535649,1.27613923,603.19,602.03,4.86320935]
[1746661535847,1.27707558,603.18,602.03,4.86320935]
[1746661536049,1.27707558,603.17,602.03,4.86320935]
[1746661536348,2.28115325,603.16,602.03,4.86320935]
[1746661536545,1.27707558,603.15,602.03,4.86320935]
[1746661536743,1.27707558,603.14,602.03,4.86320935]
[1746661536946,2.28115325,603.13,602.03,4.86320935]
[1746661537147,1.27707558,603.12,602.03,4.86320935]
[1746661537345,2.28115325,603.11,602.03,4.86320935]
[1746661537548,1.27707558,603.1,602.03,4.86320935]
[1746661537747,1.27702127,603.09,602.03,4.86320935]
[1746661538051,2.28109894,603.08,602.03,4.86320935]
[1746661538252,1.27702127,603.07,602.03,4.86320935]
[1746661538450,1.00407767,603.08,602.03,4.86320935]
[1746661538451,2.28109894,603.06,602.03,4.86320935]
[1746661538648,1.27702127,603.05,602.03,4.86320935]
[1746661538847,1.27702127,603.04,602.03,4.86320935]
[1746661539048,2.28109894,603.03,602.03,4.86320935]
[1746661539252,1.27702127,603.02,602.03,4.86320935]
[1746661539447,1.27702127,603.01,602.03,4.86320935]
[1746661539653,2.28109894,603.0,602.03,4.86320935]
[1746661539856,1.27702127,602.99,602.03,4.86320935]
[1746661540151,2.28109894,602.98,602.03,4.86320935]
[1746661540356,1.27702127,602.97,602.03,4.86320935]
[1746661540650,1.27702127,602.96,602.03,4.86320935]
[1746661540856,1.00407767,602.97,602.03,4.86320935]
[1746661541051,1.2774952,602.96,602.03,4.86320935]
[1746661541258,1.00407767,602.95,602.03,4.86320935]
[1746661541756,1.00407767,602.94,602.03,4.86320935]
[1746661542562,1.00407767,602.93,602.03,5.91679957]
[1746661543053,0.2887236,603.34,602.03,5.91679957]
[1746661543252,1.27780684,603.33,602.03,5.91679957]
[1746661543456,1.27780684,603.32,602.03,5.91679957]
[1746661543652,1.27780684,603.31,602.03,5.91679957]
[1746661543852,2.28297353,603.3,602.03,5.91679957]
[1746661544058,1.27780684,603.29,602.04,1.05359022]
[1746661544254,1.27780684,603.28,602.06,0.3321928]
[1746661544456,1.27780684,603.27,602.06,0.3321928]
[1746661544652,1.27780684,603.26,602.06,0.3321928]
[1746661544855,1.27780684,603.25,602.06,0.3321928]
[1746661545157,2.28297353,603.24,602.06,0.3321928]
[1746661545453,1.27843325,603.23,602.06,0.3321928]
[1746661545653,1.27843325,603.22,602.06,0.3321928]
[1746661545857,1.27830797,603.21,602.06,0.3321928]
[1746661546154,2.28347466,603.2,602.06,0.3321928]
[1746661546355,1.27830797,603.19,602.06,0.3321928]
[1746661546553,1.27830797,603.18,602.06,0.3321928]
[1746661546753,2.28347466,603.17,602.06,0.3321928]
[1746661546956,1.27830797,603.16,602.06,0.3321928]
[1746661547154,2.28347466,603.15,602.06,1.5951928]
[1746661547458,1.27830797,603.14,602.06,1.5951928]
[1746661547658,2.28347466,603.13,602.06,1.5951928]
[1746661547954,2.28347466,603.12,602.06,2.6891928]
[1746661548157,1.27830797,603.11,602.06,2.6891928]
[1746661548358,1.27830797,603.1,602.06,3.7541928]
[1746661548553,2.28347466,603.09,602.06,3.7541928]
[1746661548851,1.27830797,603.08,602.06,3.7541928]
[1746661549056,2.28433483,603.07,602.06,3.7541928]
[1746661549253,1.27916814,603.06,602.06,3.7541928]
[1746661549452,1.27916814,603.05,602.06,3.7541928]
[1746661549654,1.27916814,603.04,602.06,3.7541928]
[1746661549859,1.27916814,603.03,602.06,3.7541928]
[1746661550058,2.28433483,603.02,602.06,3.7541928]
[1746661550257,1.27916814,603.01,602.06,3.7541928]
[1746661550457,1.27916814,603.0,602.06,3.7541928]
[1746661550653,2.28433483,602.99,602.06,3.7541928]
[1746661550856,1.27916814,602.98,602.06,3.7541928]
[1746661551058,2.28433483,602.97,602.06,3.7541928]
[1746661551257,1.00516669,602.96,602.06,3.7541928]
[1746661551453,1.00516669,602.95,602.06,3.7541928]
[1746661551656,1.00516669,602.94,602.06,3.7541928]
[1746661551953,0.28869606,603.41,602.06,3.7541928]
[1746661552154,1.27898744,603.4,602.06,3.7541928]
[1746661552359,1.27898744,603.39,602.06,3.7541928]
[1746661552558,2.28281812,603.38,602.06,3.7541928]
[1746661552758,2.28281812,603.37,602.06,3.7541928]
[1746661553060,2.28281812,603.36,602.06,3.7541928]
[1746661553260,1.27698889,603.35,602.06,3.7541928]
[1746661553464,1.27698889,603.34,602.06,3.7541928]
[1746661553663,1.27698889,603.33,602.06,3.7541928]
[1746661553861,2.28281812,603.32,602.06,3.7541928]
[1746661554064,1.27698889,603.31,602.06,3.7541928]
[1746661554360,1.27698889,603.3,602.06,3.7541928]
[1746661554564,2.28225559,603.29,602.06,3.7541928]
[1746661554765,2.28225559,603.28,602.06,3.7541928]
[1746661554964,1.27698889,603.27,602.06,3.7541928]
[1746661555265,2.28225559,603.26,602.06,3.7541928]
[1746661555462,1.27698889,603.25,602.06,3.7541928]
[1746661555667,1.27698889,603.24,602.06,3.7541928]
[1746661555868,1.27698889,603.23,602.06,3.7541928]
[1746661556066,2.28225559,603.22,602.06,3.7541928]
[1746661556267,1.27698889,603.21,602.06,3.7541928]
[1746661556464,1.27698889,603.2,602.06,3.7541928]
[1746661556663,1.27698889,603.19,602.06,3.7541928]
[1746661556862,1.27698889,603.18,602.06,3.7541928]
[1746661557063,2.28225559,603.17,602.06,3.7541928]
[1746661557361,1.27698889,603.16,602.06,3.7541928]
[1746661557562,2.28225559,603.15,602.06,3.7541928]
[1746661557861,1.27698889,603.14,602.06,3.7541928]
[1746661558061,1.27698889,603.13,602.06,3.7541928]
[1746661558266,2.28211893,603.12,602.06,3.7541928]
[1746661558563,1.27685223,603.11,602.06,3.7541928]
[1746661558762,2.28211893,603.1,602.06,3.7541928]
[1746661558965,1.27685223,603.09,602.06,3.7541928]
[1746661559159,1.27685223,603.08,602.06,3.7541928]
[1746661559367,1.27685223,603.07,602.06,3.7541928]
[1746661559667,1.27685223,603.06,602.06,3.7541928]
[1746661559867,1.27685223,603.05,602.06,3.7541928]
[1746661560065,1.27685223,603.04,602.06,3.7541928]
[1746661560267,1.27685223,603.03,602.06,3.7541928]
[1746661560566,1.27685223,603.02,602.06,3.7541928]
[1746661560766,1.27685223,603.01,602.06,3.7541928]
[1746661560968,1.27685223,603.0,602.06,3.7541928]
[1746661561168,1.0052667,603.02,602.06,3.7541928]
[1746661561368,2.28169544,603.01,602.06,3.7541928]
[1746661561670,1.27642874,603.0,602.06,3.7541928]
[1746661561870,1.0052667,603.01,602.06,3.7541928]
[1746661562068,2.2816334,603.0,602.06,3.7541928]
[1746661562267,1.0052667,603.0,602.06,3.7541928]
[1746661562472,1.0052667,602.99,602.06,3.7541928]
[1746661562868,0.28869486,603.43,602.06,3.7541928]
[1746661562869,1.0052667,602.98,602.06,3.7541928]
[1746661563268,0.28869486,603.43,602.06,3.7541928]
[1746661563475,1.27626478,603.42,602.06,3.7541928]
[1746661563675,1.27626478,603.41,602.06,3.7541928]
[1746661563878,2.28097915,603.4,602.06,3.7541928]
[1746661564074,1.27626478,603.39,602.06,3.7541928]
[1746661564274,1.27626478,603.38,602.06,3.7541928]
[1746661564476,2.28097915,603.37,602.06,3.7541928]
[1746661564676,2.28097915,603.36,602.06,3.7541928]
[1746661564871,1.27626478,603.35,602.06,3.7541928]
[1746661565076,1.27626478,603.34,602.06,3.7541928]
[1746661565278,1.27626478,603.33,602.06,3.7541928]
[1746661565479,1.27626478,603.32,602.06,3.7541928]
[1746661565681,1.27626478,603.31,602.06,3.7541928]
[1746661565879,1.27626478,603.3,602.06,3.7541928]
[1746661566076,2.28097915,603.29,602.06,3.7541928]
[1746661566278,1.27626478,603.28,602.06,3.7541928]
[1746661566477,1.27626478,603.27,602.06,3.7541928]
[1746661566677,1.27626478,603.26,602.06,3.7541928]
[1746661566978,2.28097915,603.25,602.06,3.7541928]
[1746661567172,1.27626478,603.24,602.06,3.7541928]
[1746661567375,1.27626478,603.23,602.06,3.7541928]
[1746661567577,1.27626478,603.22,602.06,3.7541928]
[1746661567779,1.27626478,603.21,602.06,3.7541928]
[1746661568079,1.27626478,603.2,602.06,3.7541928]
[1746661568280,2.28097915,603.19,602.06,3.7541928]
[1746661568479,1.27626478,603.18,602.06,3.7541928]
[1746661568676,1.27626478,603.17,602.06,3.7541928]
[1746661568882,2.28097915,603.16,602.1,1.05359022]
[1746661569079,1.27910077,603.15,602.12,0.3321597]
[1746661569281,1.27910077,603.14,602.12,0.3321597]
[1746661569480,2.28381514,603.13,602.12,0.3321597]
[1746661569678,2.28381514,603.12,602.12,0.3321597]
[1746661569879,1.27910077,603.11,602.12,0.3321597]
[1746661570073,1.27910077,603.1,602.12,0.3321597]
[1746661570279,2.28381514,603.09,602.13,1.054]
[1746661570474,2.28381514,603.08,602.15,0.33214315]
[1746661570682,1.27910077,603.07,602.15,0.33214315]
[1746661570875,1.27910077,603.06,602.15,0.33214315]
[1746661571075,2.28353622,603.05,602.15,0.33214315]
[1746661571279,1.27882185,603.04,602.15,0.33214315]
[1746661571479,2.28353622,603.03,602.15,0.33214315]
[1746661571775,1.27882185,603.02,602.15,1.20114315]
[1746661571979,2.28353622,603.01,602.15,1.20114315]
[1746661572174,1.00471437,603.01,602.15,1.20114315]
[1746661572383,1.27797837,603.0,602.15,1.20114315]
[1746661572588,1.27797837,602.99,602.15,1.20114315]
[1746661572783,1.00471437,603.0,602.15,1.20114315]
[1746661573079,1.00471437,602.98,602.15,1.20114315]
[1746661573681,1.00471437,602.97,602.15,1.20114315]
[1746661573879,1.00471437,602.96,602.15,1.20114315]
[1746661574081,0.28867929,603.43,602.15,1.20114315]
[1746661574281,2.28317617,603.42,602.15,1.20114315]
[1746661574482,1.27750816,603.41,602.15,1.20114315]
[1746661574683,1.27750816,603.4,602.15,1.20114315]
[1746661574884,1.27750816,603.39,602.15,1.20114315]
[1746661575085,1.27750816,603.38,602.15,1.20114315]
[1746661575279,1.27750816,603.37,602.15,1.20114315]
[1746661575480,1.00566801,603.38,602.15,1.20114315]
[1746661575481,2.28317617,603.36,602.15,1.20114315]
[1746661575681,1.27750816,603.35,602.15,1.20114315]
[1746661575885,2.28317617,603.34,602.15,1.20114315]
[1746661576085,1.27750816,603.33,602.15,1.20114315]
[1746661576284,1.27750816,603.32,602.15,1.20114315]
[1746661576482,2.28317617,603.31,602.15,1.20114315]
[1746661576685,1.27750816,603.3,602.15,1.20114315]
[1746661576883,1.27750816,603.29,602.15,1.20114315]
[1746661577084,1.27750816,603.28,602.15,1.20114315]
[1746661577286,1.27750816,603.27,602.15,1.20114315]
[1746661577486,1.27750816,603.26,602.15,1.20114315]
[1746661577783,1.27750816,603.25,602.15,1.20114315]
[1746661577988,1.27750816,603.24,602.15,1.20114315]
[1746661578189,1.27750816,603.23,602.15,1.20114315]
[1746661578386,1.27986867,603.22,602.15,1.20114315]
[1746661578585,2.28553668,603.21,602.15,1.20114315]
[1746661578785,1.27986867,603.2,602.15,1.20114315]
[1746661578989,2.28553668,603.19,602.15,1.20114315]
[1746661579187,1.27986867,603.18,602.15,1.20114315]
[1746661579384,1.27986867,603.17,602.15,1.20114315]
[1746661579586,2.28553668,603.16,602.15,1.20114315]
[1746661579790,1.27986867,603.15,602.15,1.20114315]
[1746661579984,1.27986867,603.14,602.15,1.20114315]
[1746661580187,2.28553668,603.13,602.15,2.33514315]
[1746661580387,1.2796479,603.12,602.15,2.33514315]
[1746661580587,2.28531591,603.11,602.15,2.33514315]
[1746661580787,1.2796479,603.1,602.15,2.33514315]
[1746661580983,2.28531591,603.09,602.15,2.33514315]
[1746661581187,1.2796479,603.08,602.15,2.33514315]
[1746661581490,1.2796479,603.07,602.15,2.33514315]
[1746661581688,1.2796479,603.06,602.15,2.33514315]
[1746661581884,1.2796479,603.05,602.15,2.33514315]
[1746661582088,1.2796479,603.04,602.15,2.33514315]
[1746661582289,1.2796479,603.03,602.15,2.33514315]
[1746661582489,2.28531591,603.02,602.15,2.33514315]
[1746661582689,2.28531591,603.01,602.15,2.33514315]
[1746661582891,1.2796479,603.0,602.15,2.33514315]
[1746661583089,1.2796479,602.99,602.15,2.33514315]
[1746661583285,1.00566801,603.01,602.15,2.33514315]
[1746661583286,1.2796479,602.98,602.15,2.33514315]
[1746661583489,1.2796479,602.97,602.15,2.33514315]
[1746661583790,1.2796479,602.96,602.15,2.33514315]
[1746661583984,1.2796479,602.95,602.15,2.33514315]
[1746661584186,1.2796479,602.94,602.15,2.33514315]
[1746661584389,2.28531591,602.93,602.15,2.33514315]
[1746661584587,1.00566801,602.93,602.15,2.33514315]
[1746661584891,1.00566801,602.92,602.15,2.33514315]
[1746661585093,1.00566801,602.91,602.15,2.33514315]
[1746661585691,1.00566801,602.9,602.15,2.33514315]
[1746661586291,1.00566801,602.89,602.15,2.33514315]
[1746661586897,0.28872719,603.3,602.15,2.33514315]
[1746661587096,1.28107428,603.29,602.15,2.33514315]
[1746661587395,1.28107428,603.28,602.15,2.33514315]